Workbook

Sheet 入力シート
A1: 肥満度を求めてみよう（学童編）
A2: 男子、女子別に年齢・身長・体重を入力してください
B3: 年齢(歳) | C3: 体重(㎏) | D3: 身長(㎝) | E3: 標準体重(㎏) | F3: 肥満度 | G3: 判定
A4: 男子 | E4: =VLOOKUP(B4,Sheet2!A3:B16,2,FALSE) ->  | F4: =(C4-E4)/E4 ->  | G4: =IFERROR(VLOOKUP(F4,Sheet2!L3:M12,2,2),"") -> 
A5: 女子 | E5: =VLOOKUP(B5,Sheet2!F3:G16,2,FALSE) ->  | F5: =(C5-E5)/E5 ->  | G5: =IFERROR(VLOOKUP(F5,Sheet2!L3:M12,2,2),"") -> 

Sheet Sheet2
A2: （男子年齢別身長に対する標準体重） | F2: （女子年齢別身長に対する標準体重）
A3: 年齢 | B3: 標準体重 | C3: Ａ | D3: Ｂ | F3: 年齢 | G3: 標準体重 | H3: Ａ | I3: Ｂ | L3: -0.9999 | M3: やせ
A4: 5 | B4: =C4*入力シート!$D$4-D4 -> -23.699 | C4: 0.386 | D4: 23.699 | F4: 5 | G4: =H4*入力シート!$D$5-I4 -> -22.75 | H4: 0.377 | I4: 22.75 | L4: -0.2001 | M4: やせ
A5: 6 | B5: =C5*入力シート!$D$4-D5 -> -32.382 | C5: 0.461 | D5: 32.382 | F5: 6 | G5: =H5*入力シート!$D$5-I5 -> -32.079 | H5: 0.458 | I5: 32.079 | L5: -0.2 | M5: 標準
A6: 7 | B6: =C6*入力シート!$D$4-D6 -> -38.878 | C6: 0.513 | D6: 38.878 | F6: 7 | G6: =H6*入力シート!$D$5-I6 -> -38.367 | H6: 0.508 | I6: 38.367 | L6: 0.1999 | M6: 標準
A7: 8 | B7: =C7*入力シート!$D$4-D7 -> -48.804 | C7: 0.592 | D7: 48.804 | F7: 8 | G7: =H7*入力シート!$D$5-I7 -> -45.006 | H7: 0.561 | I7: 45.006 | L7: 0.2 | M7: 軽度肥満
A8: 9 | B8: =C8*入力シート!$D$4-D8 -> -61.39 | C8: 0.687 | D8: 61.39 | F8: 9 | G8: =H8*入力シート!$D$5-I8 -> -56.992 | H8: 0.652 | I8: 56.992 | L8: 0.2999 | M8: 軽度肥満
A9: 10 | B9: =C9*入力シート!$D$4-D9 -> -70.461 | C9: 0.752 | D9: 70.461 | F9: 10 | G9: =H9*入力シート!$D$5-I9 -> -68.091 | H9: 0.73 | I9: 68.091 | L9: 0.3 | M9: 中度肥満
A10: 11 | B10: =C10*入力シート!$D$4-D10 -> -75.106 | C10: 0.782 | D10: 75.106 | F10: 11 | G10: =H10*入力シート!$D$5-I10 -> -78.846 | H10: 0.803 | I10: 78.846 | L10: 0.4999 | M10: 中度肥満
A11: 12 | B11: =C11*入力シート!$D$4-D11 -> -75.642 | C11: 0.783 | D11: 75.642 | F11: 12 | G11: =H11*入力シート!$D$5-I11 -> -76.934 | H11: 0.796 | I11: 76.934 | L11: 0.3 | M11: 高度肥満
A12: 13 | B12: =C12*入力シート!$D$4-D12 -> -81.348 | C12: 0.815 | D12: 81.348 | F12: 13 | G12: =H12*入力シート!$D$5-I12 -> -54.234 | H12: 0.655 | I12: 54.234 | L12: 0.9999 | M12: 高度肥満
A13: 14 | B13: =C13*入力シート!$D$4-D13 -> -83.695 | C13: 0.832 | D13: 83.695 | F13: 14 | G13: =H13*入力シート!$D$5-I13 -> -43.264 | H13: 0.594 | I13: 43.264
A14: 15 | B14: =C14*入力シート!$D$4-D14 -> -70.989 | C14: 0.766 | D14: 70.989 | F14: 15 | G14: =H14*入力シート!$D$5-I14 -> -37.002 | H14: 0.56 | I14: 37.002
A15: 16 | B15: =C15*入力シート!$D$4-D15 -> -51.822 | C15: 0.656 | D15: 51.822 | F15: 16 | G15: =H15*入力シート!$D$5-I15 -> -39.057 | H15: 0.578 | I15: 39.057
A16: 17 | B16: =C16*入力シート!$D$4-D16 -> -53.642 | C16: 0.672 | D16: 53.642 | F16: 17 | G16: =H16*入力シート!$D$5-I16 -> -42.339 | H16: 0.598 | I16: 42.339
